bitfinex/quotes_BTCUSD_20240811
["timestamp","ask_amount","ask_price","bid_price","bid_amount"]
[1723414641677,0.000827,58784.0,58783.0,0.170117]
[1723414641913,0.001827,58784.0,58783.0,1.5440534]
[1723414642138,0.001827,58784.0,58783.0,1.73425906]
[1723414642376,0.001827,58784.0,58783.0,2.08449306]
[1723414642640,0.001827,58784.0,58783.0,2.08649306]
[1723414642875,0.001827,58784.0,58783.0,2.10649306]
[1723414643131,0.000827,58784.0,58783.0,2.25359306]
[1723414643808,0.000827,58784.0,58783.0,2.35359306]
[1723414644069,0.001827,58784.0,58783.0,2.36259306]
[1723414644276,0.001827,58784.0,58783.0,2.35359306]
[1723414644495,0.001827,58784.0,58783.0,2.34359306]
[1723414644717,0.001827,58784.0,58783.0,0.36222343]
[1723414644718,0.002827,58784.0,58783.0,0.36222343]
[1723414644935,0.512169,58784.0,58783.0,0.35322343]
[1723414645202,0.512169,58784.0,58783.0,0.14130695]
[1723414645446,1.21051592,58784.0,58783.0,0.14130695]
[1723414645679,0.170149,58772.0,58771.0,0.05930154]
[1723414645884,0.77911457,58784.0,58765.0,0.05930154]
[1723414645885,0.340321,58768.0,58765.0,0.05930154]
[1723414646071,0.170149,58772.0,58771.0,0.14134786]
[1723414646285,0.170149,58772.0,58761.0,0.22948054]
[1723414646286,0.340327,58767.0,58761.0,0.22948054]
[1723414646520,0.170175,58763.0,58762.0,0.14135303]
[1723414646724,0.09,58763.0,58762.0,0.14135303]
[1723414646945,0.1,58775.0,58765.0,0.340338]
[1723414647164,0.1,58775.0,58766.0,0.14135303]
[1723414647391,0.170149,58772.0,58771.0,0.001]
[1723414647604,0.170149,58772.0,58771.0,0.14235303]
[1723414647605,0.177149,58772.0,58771.0,0.14235303]
[1723414647863,0.177149,58772.0,58771.0,0.14135303]
[1723414648304,0.007,58772.0,58771.0,0.65180703]
[1723414648515,0.007,58772.0,58771.0,0.86379394]
[1723414648741,0.007,58772.0,58771.0,0.14135303]
[1723414648954,0.517447,58772.0,58771.0,0.14135303]
[1723414649202,0.850745,58772.0,58771.0,0.14135303]
[1723414649419,1.42695792,58772.0,58771.0,0.14135303]
[1723414649660,0.170152,58771.0,58759.0,0.05933011]
[1723414649875,0.24344719,58772.0,58762.0,0.340354]
[1723414649876,0.1676,58772.0,58762.0,0.340354]
[1723414650114,0.170161,58768.0,58763.0,0.14135375]
[1723414650330,0.170175,58763.0,58762.0,0.0009097]
[1723414650546,0.170175,58763.0,58762.0,0.14227771]
[1723414650547,0.850875,58763.0,58762.0,0.14227771]
[1723414651197,1.11468992,58763.0,58762.0,0.14227988]
[1723414651417,1.61926353,58763.0,58762.0,0.0009097]
[1723414652139,1.27891353,58763.0,58762.0,0.0009097]
[1723414652379,1.62926353,58763.0,58762.0,0.0009097]
[1723414652651,0.948662,58750.0,58749.0,0.0009097]
[1723414652876,0.59274787,58763.0,58749.0,0.0009097]
[1723414652877,0.170212,58751.0,58749.0,0.0009097]
[1723414653140,0.510637,58750.0,58749.0,0.0009097]
[1723414653393,1.11247692,58750.0,58749.0,0.0009097]
[1723414653638,1.17804408,58750.0,58749.0,0.0009097]
[1723414653904,0.170212,58750.0,58749.0,0.0009097]
[1723414654196,0.0976,58756.0,58749.0,0.0009097]
[1723414654399,0.170212,58750.0,58749.0,0.0009097]
[1723414654674,0.170212,58750.0,58749.0,0.0019097]
[1723414654909,0.1,58762.0,58749.0,0.0019097]
[1723414654910,0.0976,58764.0,58749.0,0.16572462]
[1723414655135,0.0976,58764.0,58751.0,0.08184646]
[1723414655136,0.58,58764.0,58751.0,0.08184646]
[1723414655359,0.750173,58764.0,58758.0,0.170189]
[1723414655605,0.750173,58764.0,58763.0,0.170175]
[1723414655606,0.58,58764.0,58763.0,0.170175]
[1723414655831,0.340295,58773.0,58757.0,0.08184646]
[1723414656056,0.170144,58774.0,58763.0,0.08184646]
[1723414656283,0.340281,58775.0,58768.0,0.170159]
[1723414656507,0.0905,58780.0,58773.0,0.170144]
[1723414656981,0.000827,58784.0,58775.0,0.340276]
[1723414656982,0.170942,58784.0,58775.0,0.340276]
[1723414656985,0.000827,58784.0,58774.0,0.30854009]
[1723414657203,0.000827,58784.0,58775.0,0.14132269]
[1723414657204,0.17012,58782.0,58775.0,0.14132269]
[1723414657445,0.170118,58783.0,58776.0,0.66840861]
[1723414657695,0.000827,58784.0,58776.0,0.18681492]
[1723414657926,0.000827,58784.0,58774.0,0.170142]
[1723414657927,0.170129,58779.0,58774.0,0.170142]
[1723414658180,0.000827,58784.0,58775.0,0.14131749]
[1723414658416,0.34026,58779.0,58770.0,0.0722]
[1723414658649,0.000827,58784.0,58770.0,0.0722]
[1723414658650,0.170125,58780.0,58775.0,0.17014]
[1723414658888,0.000827,58784.0,58776.0,0.24906388]
[1723414659160,0.56005674,58800.0,58788.0,0.340205]
[1723414659161,0.340153,58797.0,58788.0,0.340205]
[1723414659404,0.34016,58796.0,58786.0,0.340215]
[1723414659638,0.23254192,58799.0,58787.0,0.170103]
[1723414659866,0.340159,58796.0,58781.0,0.0969]
[1723414660138,0.068727,58799.0,58782.0,0.14129278]
[1723414660139,0.510351,58783.0,58782.0,0.14129278]
[1723414660376,0.16381492,58795.0,58776.0,0.003]
[1723414660377,0.001,58784.0,58776.0,0.00640242]
[1723414660681,0.001,58784.0,58770.0,0.15404646]
[1723414660682,0.170147,58773.0,58770.0,0.0722]
[1723414660916,0.001,58784.0,58770.0,0.0722]
[1723414661176,0.171115,58784.0,58771.0,0.14472705]
[1723414661403,0.001,58784.0,58783.0,0.510351]
[1723414661854,0.001827,58784.0,58782.0,0.170119]
[1723414662108,0.000827,58784.0,58776.0,0.08184646]
[1723414662339,0.000827,58784.0,58783.0,0.510351]
[1723414663014,0.001827,58784.0,58783.0,1.13689992]
[1723414663284,0.001827,58784.0,58783.0,0.93195316]
[1723414663530,0.002827,58784.0,58783.0,0.94195289]
[1723414663792,0.002827,58784.0,58783.0,1.14089992]
[1723414664011,0.000827,58784.0,58783.0,1.27218674]
[1723414664463,0.000827,58784.0,58783.0,1.27218435]
[1723414665360,0.001827,58784.0,58783.0,1.28118435]
[1723414665607,0.000827,58784.0,58783.0,1.27218435]
[1723414665874,0.000827,58784.0,58783.0,0.263617]
[1723414666096,0.001827,58784.0,58783.0,0.179117]
[1723414666343,0.001827,58784.0,58783.0,0.519351]
[1723414666561,0.001827,58784.0,58783.0,1.04639992]
[1723414666774,0.000827,58784.0,58783.0,1.03739992]
[1723414666998,0.001827,58784.0,58783.0,1.04639992]
[1723414667455,0.001827,58784.0,58783.0,1.80456792]
[1723414667668,0.001827,58784.0,58783.0,2.14784938]
[1723414667879,0.001827,58784.0,58783.0,2.16984938]
[1723414668333,0.000827,58784.0,58783.0,2.16084938]
[1723414668550,0.000827,58784.0,58783.0,2.51008338]
[1723414668769,0.000827,58784.0,58783.0,2.56935799]
[1723414668770,0.001827,58784.0,58783.0,2.56935799]
[1723414668988,0.00829,58808.0,58799.0,1.190493]
[1723414669207,0.00829,58808.0,58799.0,1.61088938]
[1723414669730,0.00829,58808.0,58799.0,1.46960792]
[1723414669940,0.00829,58808.0,58799.0,1.12946692]
[1723414670158,0.178335,58808.0,58799.0,1.12946692]
[1723414670377,0.170048,58807.0,58799.0,1.12946692]
[1723414670603,0.00829,58808.0,58799.0,1.12946692]
[1723414670820,0.178335,58808.0,58799.0,1.12946692]
[1723414671056,0.00829,58808.0,58799.0,1.12946692]
[1723414671270,0.178336,58808.0,58799.0,1.12946692]
[1723414671483,0.001827,58800.0,58799.0,1.13946692]
[1723414671697,0.000827,58800.0,58799.0,1.12946692]
[1723414671907,0.000827,58800.0,58799.0,1.13946692]
[1723414671908,0.001827,58800.0,58799.0,1.13946692]
[1723414672352,0.001827,58800.0,58799.0,1.82974892]
[1723414672560,0.001827,58800.0,58799.0,1.80724468]
[1723414672772,0.000827,58800.0,58799.0,1.81724468]
[1723414672996,1e-06,58800.0,58799.0,2.83966768]
[1723414673230,0.0083,58810.0,58809.0,0.287642]
[1723414673468,0.0083,58810.0,58809.0,1.24262492]
[1723414673682,0.0083,58810.0,58809.0,1.92479292]
[1723414674102,0.0083,58810.0,58809.0,1.94479292]
[1723414674324,0.00829,58829.0,58824.0,0.849992]
[1723414674534,0.00829,58829.0,58824.0,1.03680692]
[1723414674780,0.00829,58829.0,58824.0,1.06606001]
[1723414675642,0.00829,58829.0,58824.0,1.40605701]
[1723414675852,0.00829,58829.0,58824.0,1.48515701]
[1723414676179,0.00829,58829.0,58824.0,1.15916001]
[1723414676385,0.00829,58829.0,58824.0,1.11590692]
[1723414676595,0.00829,58829.0,58824.0,1.12990692]
[1723414677026,0.00829,58829.0,58824.0,1.08006001]
[1723414677232,0.00829,58829.0,58824.0,1.05080692]
[1723414677689,0.00829,58829.0,58824.0,1.08006001]
[1723414677897,0.00829,58829.0,58824.0,1.05080692]
[1723414678121,0.00829,58829.0,58824.0,0.014]
[1723414678357,0.00829,58829.0,58824.0,0.183998]
[1723414678557,0.00829,58829.0,58824.0,0.169998]
[1723414678774,0.178274,58829.0,58824.0,0.183998]
[1723414678985,0.178274,58829.0,58824.0,0.169998]
[1723414679403,0.00829,58829.0,58824.0,0.183998]
[1723414679616,0.00829,58829.0,58824.0,0.509995]
[1723414679850,0.0922,58826.0,58813.0,0.34006]
[1723414680090,0.0922,58826.0,58824.0,0.01]
[1723414680091,0.858267,58825.0,58824.0,0.01]
[1723414680305,0.340001,58824.0,58803.0,0.0791]
[1723414680520,0.00829,58825.0,58806.0,0.01]
[1723414680521,0.08369,58825.0,58806.0,0.01]
[1723414680737,0.339997,58824.0,58807.0,0.340093]
[1723414680956,0.08369,58825.0,58824.0,0.169998]
[1723414680957,0.00829,58825.0,58824.0,0.169998]
[1723414681175,0.00829,58825.0,58808.0,0.08184646]
[1723414681425,0.00829,58825.0,58804.0,0.002]
[1723414681426,0.340003,58823.0,58817.0,0.170016]
[1723414681641,0.170005,58822.0,58817.0,0.33383192]
[1723414681864,0.00829,58825.0,58803.0,0.419216]
[1723414681865,0.09013646,58825.0,58803.0,0.419216]
[1723414682084,0.0933,58818.0,58796.0,0.0763]
[1723414682314,0.0933,58806.0,58785.0,0.01]
[1723414682536,0.170057,58804.0,58800.0,0.170066]
[1723414682791,0.433402,58806.0,58786.0,0.16381492]
[1723414682792,0.170093,58792.0,58786.0,0.16381492]
[1723414683020,0.25711492,58806.0,58790.0,0.170096]
[1723414683238,0.0933,58791.0,58784.0,0.340228]
[1723414683455,0.0933,58804.0,58783.0,0.0009097]
[1723414683680,0.0933,58804.0,58790.0,0.170095]
[1723414683681,0.170083,58795.0,58790.0,0.170095]
[1723414684146,0.170088,58793.0,58789.0,0.170097]
[1723414684362,0.340149,58798.0,58785.0,0.003]
[1723414684579,0.16381492,58803.0,58785.0,0.17311]
[1723414684804,0.16381492,58803.0,58785.0,0.34322]
[1723414685033,0.170091,58792.0,58788.0,0.170101]
[1723414685301,0.001,58792.0,58790.0,0.001]
[1723414685525,0.001,58792.0,58786.0,0.008]
[1723414685526,0.170094,58791.0,58783.0,0.16472462]
[1723414685745,0.340168,58795.0,58783.0,0.16472462]
[1723414685963,0.170089,58793.0,58784.0,0.340226]
[1723414686187,0.170089,58793.0,58788.0,0.170102]
[1723414686415,0.001,58792.0,58788.0,0.008]
[1723414686638,0.342182,58792.0,58788.0,0.008]
[1723414686850,0.170098,58790.0,58784.0,0.340227]
[1723414687075,0.170098,58790.0,58786.0,0.170108]
[1723414687294,0.001,58792.0,58787.0,0.170104]
[1723414687506,0.001,58792.0,58783.0,0.16472462]
[1723414687507,0.001,58792.0,58791.0,0.170094]
[1723414687722,0.001,58792.0,58791.0,0.510282]
[1723414687943,0.49107874,58816.0,58791.0,0.510282]
[1723414687944,0.49107874,58816.0,58791.0,0.16381492]
[1723414688166,0.170053,58805.0,58793.0,0.340172]
[1723414688411,0.170056,58804.0,58794.0,0.1446695]
[1723414688630,0.0933,58809.0,58793.0,0.16381492]
[1723414688822,0.0933,58809.0,58795.0,0.170081]
[1723414688823,0.170069,58800.0,58795.0,0.170081]
[1723414689328,0.340129,58802.0,58793.0,0.16381492]
[1723414689553,0.0933,58809.0,58794.0,0.48143531]
[1723414689790,0.170068,58800.0,58796.0,0.170079]
[1723414690013,0.0933,58809.0,58795.0,0.00340125]
[1723414690260,0.0933,58809.0,58800.0,0.34013]
[1723414690261,0.510136,58808.0,58800.0,0.34013]
[1723414690516,0.006,58809.0,58808.0,0.510133]
[1723414690781,0.006,58809.0,58808.0,0.9914524]
[1723414691001,0.006,58809.0,58808.0,0.99145385]
[1723414691468,0.006,58809.0,58808.0,1.69421492]
[1723414691727,0.006,58809.0,58808.0,2.64066175]
[1723414691966,0.009,58809.0,58808.0,2.37997275]
[1723414692186,0.009,58809.0,58808.0,2.45056642]
[1723414692463,0.000827,58822.0,58821.0,1.288349]
[1723414692731,0.000827,58822.0,58821.0,1.65346392]
[1723414693018,0.000827,58822.0,58821.0,1.41397848]
[1723414693245,0.000827,58822.0,58813.0,0.170029]
[1723414693491,0.000827,58822.0,58814.0,0.14122431]
[1723414693748,0.000827,58822.0,58808.0,0.009]
[1723414693749,0.000827,58822.0,58815.0,0.14122431]
[1723414693993,0.94871,58809.0,58808.0,0.009]
[1723414694221,1.60775538,58809.0,58808.0,0.009]
[1723414694678,1.60775538,58809.0,58808.0,0.023]
[1723414694679,1.70044562,58809.0,58808.0,0.023]
[1723414694904,0.681926,58809.0,58808.0,0.023]
[1723414695153,0.170059,58803.0,58798.0,0.170073]
[1723414695434,0.170059,58803.0,58788.0,0.05947247]
[1723414695435,0.1718,58815.0,58812.0,0.170032]
[1723414695704,0.170014,58819.0,58814.0,0.170027]
[1723414695932,0.0985,58821.0,58805.0,0.074]
[1723414696157,0.0985,58821.0,58802.0,0.094]
[1723414696158,0.006,58809.0,58808.0,0.001]
[1723414696381,0.0985,58821.0,58811.0,0.34007]
[1723414696635,0.0985,58821.0,58812.0,0.14222831]
[1723414696636,0.268509,58821.0,58812.0,0.14222831]
[1723414696878,0.268509,58821.0,58814.0,0.170026]
[1723414696879,0.0985,58821.0,58814.0,0.170026]
[1723414697104,0.0985,58821.0,58805.0,0.340103]
[1723414697105,0.50383492,58820.0,58802.0,0.434121]
[1723414697330,0.50383492,58820.0,58803.0,0.14123779]
[1723414697331,0.16381492,58819.0,58803.0,0.14123779]
[1723414697561,0.16381492,58819.0,58804.0,0.14123779]
[1723414697562,0.170025,58815.0,58804.0,0.14123779]
[1723414697786,0.17002,58817.0,58808.0,0.340088]
[1723414698039,0.17002,58817.0,58802.0,0.340121]
[1723414698040,0.003,58819.0,58803.0,0.08184646]
[1723414698274,0.00829,58829.0,58821.0,0.170007]
[1723414698534,0.00829,58829.0,58821.0,0.67762874]
[1723414698757,0.00829,58829.0,58821.0,1.51807218]
[1723414699012,0.00829,58829.0,58821.0,0.65122926]
[1723414699481,0.00829,58829.0,58821.0,0.31421526]
[1723414699709,0.169991,58827.0,58821.0,0.176007]
[1723414699936,0.178275,58829.0,58821.0,0.65423006]
[1723414700156,0.178286,58825.0,58821.0,0.15320906]
[1723414700392,0.001827,58822.0,58821.0,0.012]
[1723414700654,0.001827,58822.0,58821.0,0.519021]
[1723414700897,0.001827,58822.0,58821.0,0.189007]
[1723414701117,0.002827,58822.0,58821.0,0.67023092]
[1723414701360,0.002827,58822.0,58821.0,0.32121692]
[1723414701361,0.001827,58822.0,58821.0,0.32121692]
[1723414701583,0.000827,58822.0,58821.0,0.31121692]
[1723414701942,0.926347,58822.0,58821.0,0.019]
[1723414702130,1.19056192,58822.0,58821.0,0.019]
[1723414702369,1.53056992,58822.0,58821.0,0.018]
[1723414702603,1.18956192,58822.0,58821.0,0.01]
[1723414702848,0.85055392,58822.0,58821.0,0.019]
[1723414703081,1.026747,58822.0,58821.0,0.01]
[1723414703310,0.103227,58822.0,58821.0,0.01]
[1723414703524,0.273231,58822.0,58821.0,0.01]
[1723414703732,0.170007,58821.0,58817.0,0.170016]
[1723414703951,0.102227,58822.0,58821.0,0.170007]
[1723414703952,0.001827,58822.0,58821.0,0.170007]
[1723414704173,0.002827,58822.0,58821.0,0.510021]
[1723414704402,0.003827,58822.0,58821.0,0.510021]
[1723414704611,0.002827,58822.0,58821.0,0.170007]
[1723414704828,0.000827,58822.0,58821.0,0.510021]
[1723414705048,0.000827,58822.0,58821.0,0.850035]
[1723414705270,0.000827,58822.0,58821.0,0.99124533]
[1723414705485,0.000827,58822.0,58821.0,1.15506025]
[1723414705735,0.000827,58822.0,58821.0,1.52807425]
[1723414705949,0.000827,58822.0,58821.0,0.65623133]
[1723414706167,0.510839,58822.0,58821.0,0.15421033]
[1723414706381,0.510839,58822.0,58821.0,0.66423133]
[1723414706382,0.001827,58822.0,58821.0,0.66423133]
[1723414706597,0.001827,58822.0,58821.0,1.59857425]
[1723414706811,0.001827,58822.0,58821.0,1.62157425]
[1723414707288,0.001827,58822.0,58821.0,0.31921733]
[1723414707507,0.001827,58822.0,58821.0,0.008]
[1723414707722,0.511839,58822.0,58821.0,0.008]
[1723414707935,0.851847,58822.0,58821.0,0.008]
[1723414708151,0.851847,58822.0,58821.0,0.011]
[1723414708448,0.851847,58822.0,58821.0,0.02]
[1723414708674,0.24244192,58822.0,58810.0,0.0009097]
[1723414708901,0.510108,58811.0,58810.0,0.0009097]
[1723414709118,0.94958,58811.0,58810.0,0.0009097]
[1723414709342,1.289652,58811.0,58810.0,0.0009097]
[1723414710243,1.98089692,58811.0,58810.0,0.0009097]
[1723414710453,2.09394671,58811.0,58810.0,0.0009097]
[1723414710662,2.48387471,58811.0,58810.0,0.0009097]
[1723414711472,2.48587471,58811.0,58810.0,0.0009097]
[1723414711700,2.48387471,58811.0,58810.0,0.0009097]
[1723414711930,1.75387471,58811.0,58810.0,0.0019097]
[1723414712192,1.245938,58811.0,58810.0,0.0029097]
[1723414712421,0.628508,58811.0,58810.0,0.0019097]
[1723414712661,0.628508,58811.0,58810.0,0.0029097]
[1723414712662,0.027,58811.0,58810.0,0.0029097]
[1723414712892,0.178036,58811.0,58810.0,0.0019097]
[1723414713117,0.85818,58811.0,58810.0,0.0019097]
[1723414713326,0.019,58811.0,58810.0,0.0029097]
[1723414713746,0.011,58811.0,58810.0,0.0019097]
[1723414713959,1.21294138,58811.0,58810.0,0.0029097]
[1723414714179,1.83929584,58811.0,58810.0,0.0029097]
[1723414714383,1.83929584,58811.0,58810.0,0.0009097]
[1723414714384,1.84344892,58811.0,58810.0,0.0009097]
[1723414714810,2.19852092,58811.0,58810.0,0.0069097]
[1723414715021,1.87344892,58811.0,58810.0,0.0069097]
[1723414715227,1.87344892,58811.0,58810.0,0.0009097]
[1723414715450,2.21852092,58811.0,58810.0,0.0009097]
[1723414715674,3.36985173,58811.0,58810.0,0.0009097]
[1723414715885,0.1007,58799.0,58783.0,0.1710257]
[1723414716091,0.170097,58790.0,58784.0,0.48152176]
[1723414716312,0.28799834,58798.0,58784.0,0.340227]
[1723414716313,0.16381492,58798.0,58784.0,0.340227]
[1723414716520,0.16381492,58798.0,58786.0,0.170107]
[1723414716521,0.340179,58793.0,58786.0,0.170107]
[1723414716747,0.05074095,58808.0,58789.0,0.340197]
[1723414716969,0.07611143,58809.0,58788.0,0.24566138]
[1723414716970,0.005,58811.0,58810.0,0.01]
[1723414717211,0.000827,58822.0,58821.0,0.860035]
[1723414717416,0.000827,58822.0,58821.0,1.60879054]
[1723414717630,0.000827,58822.0,58821.0,1.66379054]
[1723414717841,0.000827,58822.0,58821.0,1.66372737]
[1723414718055,0.000827,58822.0,58821.0,2.20191238]
[1723414718264,0.000827,58822.0,58821.0,2.48426027]
[1723414718494,0.000827,58822.0,58821.0,2.33133902]
[1723414718922,0.002827,58822.0,58821.0,2.22091238]
[1723414719142,0.002827,58822.0,58821.0,2.45275308]
[1723414719349,0.003827,58822.0,58821.0,2.19091238]
[1723414719552,0.003827,58822.0,58821.0,2.15655629]
[1723414719776,0.003827,58822.0,58821.0,2.18655629]
[1723414719982,0.003827,58822.0,58821.0,2.47121544]
[1723414720193,0.002827,58822.0,58821.0,2.17486863]
[1723414720406,0.003827,58822.0,58821.0,2.18886863]
[1723414720614,0.003827,58822.0,58821.0,2.15155629]
[1723414720615,0.001827,58822.0,58821.0,2.15155629]
[1723414720816,0.001827,58822.0,58821.0,2.18386863]
[1723414720992,0.001827,58822.0,58821.0,2.17886863]
[1723414721242,0.001827,58822.0,58821.0,2.15655629]
[1723414721438,0.002827,58822.0,58821.0,2.16055629]
[1723414721643,0.001827,58822.0,58821.0,2.19215863]
[1723414721845,0.001827,58822.0,58821.0,1.80383229]
[1723414721846,0.000827,58822.0,58821.0,1.80383229]
[1723414722046,0.001827,58822.0,58821.0,1.83685463]
[1723414722253,0.001827,58822.0,58821.0,1.80454229]
[1723414722508,0.001827,58822.0,58821.0,1.80654229]
[1723414722825,0.002827,58822.0,58821.0,1.81854169]
[1723414723251,0.003827,58822.0,58821.0,1.73254169]
[1723414723717,0.002827,58822.0,58821.0,1.71854169]
[1723414723922,0.000827,58822.0,58821.0,1.69554169]
[1723414724132,0.002827,58822.0,58821.0,1.71855909]
[1723414724994,0.000827,58822.0,58821.0,1.55436392]
[1723414725194,0.000827,58822.0,58821.0,1.70455898]
[1723414725195,0.001827,58822.0,58821.0,1.70455898]
[1723414726020,0.000827,58822.0,58821.0,1.69555898]
[1723414726271,0.001827,58822.0,58821.0,1.70955089]
[1723414726483,0.001827,58822.0,58821.0,2.2409056]
[1723414726705,0.000827,58822.0,58821.0,2.14756489]
[1723414726886,0.000827,58822.0,58821.0,1.79555089]
[1723414727129,0.001827,58822.0,58821.0,1.80955089]
[1723414727333,0.002827,58822.0,58821.0,1.81855089]
[1723414727597,0.001827,58822.0,58821.0,1.80455089]
[1723414727726,0.000827,58822.0,58821.0,1.79555089]
[1723414727934,0.002827,58822.0,58821.0,1.81855089]
[1723414728264,0.002827,58822.0,58821.0,1.80955089]
[1723414728433,0.003827,58822.0,58821.0,1.81855089]
[1723414728635,0.003827,58822.0,58821.0,1.82055089]
[1723414728836,0.002827,58822.0,58821.0,1.81855089]
[1723414729044,0.003827,58822.0,58821.0,1.68636392]
[1723414729270,0.002827,58822.0,58821.0,1.8135449]
[1723414729708,0.003827,58822.0,58821.0,1.82754573]
[1723414729972,0.003827,58822.0,58821.0,0.87001773]
[1723414730104,0.003827,58822.0,58821.0,0.018]
[1723414730105,0.607239,58822.0,58821.0,0.018]
[1723414730346,0.095227,58822.0,58810.0,0.0009097]
[1723414730487,0.606239,58822.0,58821.0,0.014]
[1723414730890,0.340035,58818.0,58811.0,0.16381492]
[1723414731106,0.34002,58820.0,58814.0,0.170026]
[1723414731317,0.34002,58820.0,58812.0,0.340066]
[1723414731318,0.170011,58820.0,58812.0,0.340066]
[1723414731470,0.444235,58822.0,58812.0,0.340066]
[1723414731471,0.170016,58818.0,58813.0,0.340059]
[1723414731678,0.340021,58820.0,58815.0,0.170023]
[1723414731901,0.17002,58817.0,58813.0,0.170028]
[1723414732335,0.170016,58818.0,58812.0,0.16381492]
[1723414732562,0.170018,58817.0,58813.0,0.170029]
[1723414732854,0.170017,58818.0,58812.0,0.16381492]
[1723414733072,0.170012,58820.0,58813.0,0.34006]
[1723414733275,0.104227,58822.0,58816.0,0.170019]
[1723414733481,0.104227,58822.0,58813.0,0.34006]
[1723414733482,0.340021,58820.0,58813.0,0.34006]
[1723414733752,0.170014,58819.0,58813.0,0.34006]
[1723414733958,0.170014,58819.0,58815.0,0.170023]
[1723414734790,0.000827,58822.0,58821.0,0.927935]
[1723414735025,0.000827,58822.0,58821.0,1.35595994]
[1723414735235,0.000827,58822.0,58821.0,0.91594594]
[1723414735440,0.000827,58822.0,58821.0,0.65123102]
[1723414735648,0.000827,58822.0,58821.0,0.510021]
[1723414735920,0.000827,58822.0,58821.0,1.01384992]
[1723414736196,0.000827,58822.0,58821.0,1.51806461]
[1723414737273,0.001827,58822.0,58821.0,1.53206461]
[1723414737490,0.002827,58822.0,58821.0,1.20005061]
[1723414737705,0.001827,58822.0,58821.0,1.19205061]
[1723414738171,0.002827,58822.0,58821.0,2.15297861]
[1723414738600,0.001827,58822.0,58821.0,2.13897861]
[1723414738838,0.000827,58822.0,58821.0,3.13097861]
[1723414739039,0.001827,58822.0,58821.0,3.14497861]
[1723414739249,0.002827,58822.0,58821.0,3.15297861]
[1723414739459,0.00136219,58822.0,58821.0,3.13897861]
[1723414739661,0.00236219,58822.0,58821.0,3.15297861]
[1723414740334,0.00236219,58822.0,58821.0,3.01177792]
[1723414740535,0.00236219,58822.0,58821.0,3.1529605]
[1723414742246,0.00236219,58822.0,58821.0,2.8129465]
[1723414742445,0.00236219,58822.0,58821.0,2.3000325]
[1723414742889,0.00236219,58822.0,58821.0,2.6400534]
[1723414743529,0.00236219,58822.0,58821.0,2.98006614]
[1723414743737,0.00236219,58822.0,58821.0,2.64005214]
[1723414744373,0.00236219,58822.0,58821.0,2.30003814]
[1723414744595,0.00236219,58822.0,58821.0,2.64005214]
[1723414745264,0.00236219,58822.0,58821.0,2.64205214]
[1723414745501,0.00236219,58822.0,58821.0,2.64005214]
[1723414746253,0.00236219,58822.0,58821.0,2.64004417]
[1723414746458,0.00236219,58822.0,58821.0,2.85181454]
[1723414747801,0.00236219,58822.0,58821.0,2.85272424]
[1723414748284,1.9e-07,58825.0,58824.0,0.032]
[1723414748567,1.9e-07,58825.0,58824.0,1.9935843]
[1723414748770,1.9e-07,58825.0,58824.0,1.99973784]
[1723414748981,1.9e-07,58825.0,58824.0,1.82975454]
[1723414749188,1.9e-07,58825.0,58824.0,0.35295062]
[1723414749402,0.50751011,58825.0,58824.0,0.14118025]
[1723414749631,0.88002,58822.0,58821.0,1.0229097]
[1723414749896,2.47265174,58822.0,58821.0,1.0229097]
[1723414750106,2.47265174,58822.0,58821.0,0.8483097]
[1723414750107,2.84595974,58822.0,58821.0,0.8483097]
[1723414750346,2.13021325,58822.0,58821.0,0.8336097]
[1723414750563,3.00021325,58822.0,58821.0,0.8336097]
[1723414750776,0.12356236,58822.0,58821.0,0.8336097]
[1723414750998,0.1003,58822.0,58821.0,0.8336097]
[1723414751202,0.1063,58822.0,58821.0,0.8346097]
[1723414751429,0.006,58822.0,58821.0,1.0036167]
[1723414751643,0.006,58822.0,58821.0,1.98867649]
[1723414751846,0.006,58822.0,58821.0,2.32969049]
[1723414752056,0.006,58822.0,58821.0,2.52489049]
[1723414752255,0.006,58822.0,58821.0,3.02547735]
[1723414752468,0.006,58822.0,58821.0,2.96590449]
[1723414752699,0.006,58822.0,58821.0,2.19297649]
[1723414753171,0.006,58822.0,58821.0,2.54699049]
[1723414753376,0.006,58822.0,58821.0,2.64289049]
[1723414753579,0.006,58822.0,58821.0,3.0284032]
[1723414753790,1.9e-07,58825.0,58824.0,1.199989]
[1723414753997,1.9e-07,58825.0,58824.0,1.68947237]
[1723414754235,1.9e-07,58825.0,58824.0,2.02946937]
[1723414754441,1.9e-07,58825.0,58824.0,1.96997478]
[1723414754641,1.9e-07,58825.0,58824.0,2.03055757]
[1723414754845,1.9e-07,58825.0,58824.0,1.68856057]
[1723414755059,1.9e-07,58825.0,58824.0,1.61797691]
[1723414755275,0.00100019,58825.0,58824.0,1.63197691]
[1723414755489,0.00100019,58825.0,58824.0,1.61797691]
[1723414755697,0.00100019,58825.0,58824.0,1.63197691]
[1723414755915,0.00100019,58825.0,58824.0,0.68816799]
[1723414756145,0.00100019,58825.0,58824.0,0.99116499]
[1723414756573,0.00100019,58825.0,58824.0,1.00516499]
[1723414756783,0.00100019,58825.0,58824.0,1.16897991]
[1723414757438,0.00200019,58825.0,58824.0,1.20597991]
[1723414757900,1.9e-07,58825.0,58824.0,1.17797991]
[1723414758180,1.9e-07,58825.0,58824.0,1.19097991]
[1723414758401,0.00100019,58825.0,58824.0,1.20497991]
[1723414758623,0.00100019,58825.0,58824.0,0.99116499]
[1723414758624,1.9e-07,58825.0,58824.0,0.99116499]
[1723414758864,1.9e-07,58825.0,58824.0,1.16897991]
[1723414758865,0.00100019,58825.0,58824.0,1.16897991]
[1723414759123,0.00100019,58825.0,58824.0,1.20597991]
[1723414760075,0.00100019,58825.0,58824.0,1.99597391]
[1723414760320,0.00100019,58825.0,58824.0,2.03200092]
[1723414760573,0.00100019,58825.0,58824.0,2.45550819]
[1723414760819,0.00100019,58825.0,58824.0,2.46605276]
[1723414761045,0.00100019,58825.0,58824.0,2.45205276]
[1723414761282,1.9e-07,58825.0,58824.0,2.45205276]
[1723414761521,0.00829,58832.0,58828.0,1.541883]